fUST/lending_fUST_20260424
["ID","MTS","AMOUNT","RATE_DAILY","PERIOD"]
[421074627,1776970238625,-300.0,0.00018495,2]
[421074629,1776970238634,-855.62559816,0.000185,2]
[421074631,1776970238643,-197.91681089,0.000185,2]
[421074633,1776970238652,-263.29449906,0.000185,2]
[421074635,1776970238661,-191.04353188,0.000185,2]
[421074637,1776970238670,-171.63408985,0.000185,2]
[421074639,1776970238679,-525.17617896,0.000185,2]
[421074641,1776970238689,-1389.92900695,0.000185,2]
[421074643,1776970238698,-224.74577871,0.000185,2]
[421074645,1776970238707,-1535.54368643,0.000185,2]
[421074647,1776970238716,-338.01395355,0.000185,2]
[421074649,1776970238725,-635.31602665,0.000185,2]
[421074651,1776970238734,-168.03137639,0.000185,2]
[421074653,1776970238743,-224.10277073,0.000185,2]
[421074655,1776970238751,-162.85604449,0.000185,2]
[421074657,1776970238761,-455.76204491,0.000185,2]
[421074659,1776970238769,-1420.38802451,0.000185,2]
[421074661,1776970238778,-1753.77373409,0.000185,2]
[421074663,1776970238787,-1104.7678895,0.000185,2]
[421074665,1776970238796,-1847.68114686,0.000185,2]
[421074667,1776970238805,-160.0,0.0001855,2]
[421074669,1776970238814,-855.62559816,0.000186,2]
[421074670,1776970238823,-197.91681089,0.000186,2]
[421074672,1776970238831,-263.29449906,0.000186,2]
[421074674,1776970238841,-171.63408985,0.000186,2]
[421074676,1776970238850,-525.17617896,0.000186,2]
[421074703,1776970238860,-1389.92900695,0.000186,2]
[421074708,1776970239131,-224.74577871,0.000186,2]
[421074710,1776970239141,-1535.54368643,0.000186,2]
[421074712,1776970239151,-338.01395355,0.000186,2]
[421074714,1776970239160,-635.31602665,0.000186,2]
[421074716,1776970239173,-168.03137639,0.000186,2]
[421074718,1776970239182,-224.10277073,0.000186,2]
[421074720,1776970239192,-155.0,0.00018619,2]
[421074722,1776970239201,-355743.87018434,0.0001862,2]
[421074792,1776970243576,-15674.1178605,0.0001862,2]
[421074795,1776970243740,-388912.36762967,0.0001862,2]
[421074796,1776970243756,-151.0,0.0001862,2]
[421074797,1776970243772,-322.862729,0.0001862,2]
[421074798,1776970243788,-322.862729,0.0001862,2]
[421074799,1776970243802,-322.862729,0.0001862,2]
[421074800,1776970243816,-322.862729,0.0001862,2]
[421074801,1776970243829,-151.0,0.0001862,2]
[421074803,1776970243843,-151.0,0.0001862,2]
[421074806,1776970243858,-151.0,0.0001862,2]
[421074807,1776970243875,-151.0,0.0001862,2]
[421074808,1776970243889,-259.196053,0.0001862,2]
[421074809,1776970243905,-259.196053,0.0001862,2]
[421074810,1776970243921,-259.196053,0.0001862,2]
[421074811,1776970243932,-259.196053,0.0001862,2]
[421074812,1776970243944,-151.0,0.0001862,2]
[421074813,1776970243960,-487.0,0.0001862,2]
[421074814,1776970243972,-487.0,0.0001862,2]
[421074815,1776970243988,-487.0,0.0001862,2]
[421074816,1776970244005,-487.0,0.0001862,2]
[421074817,1776970244017,-487.0,0.0001862,2]
[421074818,1776970244035,-487.0,0.0001862,2]
[421074819,1776970244050,-487.0,0.0001862,2]
[421074820,1776970244063,-487.0,0.0001862,2]
[421074821,1776970244075,-487.0,0.0001862,2]
[421074822,1776970244088,-487.0,0.0001862,2]
[421074823,1776970244101,-487.0,0.0001862,2]
[421074824,1776970244113,-487.0,0.0001862,2]
[421074825,1776970244125,-487.0,0.0001862,2]
[421074826,1776970244138,-487.0,0.0001862,2]
[421074827,1776970244150,-487.0,0.0001862,2]
[421074828,1776970244162,-487.0,0.0001862,2]
[421074829,1776970244175,-487.0,0.0001862,2]
[421074830,1776970244187,-487.0,0.0001862,2]
[421074831,1776970244200,-875.86,0.0001862,2]
[421074832,1776970244214,-500.0,0.00018673,2]
[421074833,1776970244226,-500.0,0.00018673,2]
[421074834,1776970244239,-500.0,0.00018673,2]
[421074835,1776970244251,-500.0,0.00018673,2]
[421074836,1776970244263,-500.0,0.00018673,2]
[421074837,1776970244276,-500.0,0.00018673,2]
[421074838,1776970244289,-500.0,0.00018673,2]
[421074839,1776970244302,-308.43510301,0.00018673,2]
[421074840,1776970244314,-158.37750992,0.00018673,2]
[421074841,1776970244327,-158.36882621,0.00018673,2]
[421074842,1776970244340,-167.68897738,0.00018673,2]
[421074843,1776970244353,-391.24962913,0.00018673,2]
[421074844,1776970244367,-500.0,0.00018673,2]
[421074845,1776970244380,-410.8873577,0.00018673,2]
[421074846,1776970244392,-150.0,0.00018673,2]
[421074847,1776970244405,-500.0,0.00018673,2]
[421074848,1776970244418,-500.0,0.00018673,2]
[421074849,1776970244430,-500.0,0.00018673,2]
[421074850,1776970244443,-426.2691269,0.00018673,2]
[421074851,1776970244455,-503.76268156,0.00018673,2]
[421074852,1776970244468,-500.0,0.00018673,2]
[421074853,1776970244482,-500.0,0.00018673,2]
[421074854,1776970244497,-158.36983307,0.00018673,2]
[421074855,1776970244512,-158.37708402,0.00018673,2]
[421074856,1776970244525,-298.40141141,0.00018673,2]
[421074857,1776970244538,-500.0,0.00018673,2]
[421074858,1776970244552,-500.0,0.00018673,2]
[421074859,1776970244564,-500.0,0.00018673,2]
[421074860,1776970244577,-500.0,0.00018673,2]
[421074861,1776970244590,-500.0,0.00018673,2]
[421074862,1776970244602,-500.0,0.00018673,2]
[421074863,1776970244614,-500.0,0.00018673,2]
[421074864,1776970244627,-500.0,0.00018673,2]
[421074865,1776970244639,-250.0,0.00018675,2]
[421074866,1776970244653,-350.0,0.00018678,2]
[421074867,1776970244667,-450.0,0.00018681,2]
[421074868,1776970244680,-2312.83697232,0.00018681,2]
[421074869,1776970244693,-277.41193959,0.00018681,2]
[421074870,1776970244707,-550.0,0.00018684,2]
[421074871,1776970244721,-751.10303292,0.00018686,2]
[421074872,1776970244735,-461.67526834,0.00018734,2]
[421074873,1776970244749,-557.5788265,0.00018734,2]
[421074874,1776970244762,-182.63743966,0.00018754,2]
[421074875,1776970244774,-855.62559816,0.000188,2]
[421074876,1776970244788,-263.29449906,0.000188,2]
[421074877,1776970244801,-171.63408985,0.000188,2]
[421074878,1776970244814,-525.17617896,0.000188,2]
[421074879,1776970244826,-1389.92900695,0.000188,2]
[421074880,1776970244839,-224.74577871,0.000188,2]
[421074881,1776970244852,-1535.54368643,0.000188,2]
[421074882,1776970244863,-338.01395355,0.000188,2]
[421074883,1776970244876,-635.31602665,0.000188,2]
[421074884,1776970244888,-168.03137639,0.000188,2]
[421074885,1776970244901,-224.10277073,0.000188,2]
[421074886,1776970244913,-622.707,0.000188,2]
[421074887,1776970244927,-1000.0,0.00018821,2]
[421074888,1776970244938,-155.0,0.00018885,2]
[421074889,1776970244951,-855.62559816,0.00019,2]
[421074890,1776970244963,-263.29449906,0.00019,2]
[421074891,1776970244976,-525.17617896,0.00019,2]
[421074892,1776970244989,-171.63408985,0.00019,2]
[421074893,1776970245003,-1389.92900695,0.00019,2]
[421074894,1776970245016,-224.74577871,0.00019,2]
[421074895,1776970245027,-1535.54368643,0.00019,2]
[421074896,1776970245041,-338.01395355,0.00019,2]
[421074897,1776970245054,-635.31602665,0.00019,2]
[421074898,1776970245066,-168.03137639,0.00019,2]
[421074899,1776970245079,-224.10277073,0.00019,2]
[421074900,1776970245092,-155.0,0.00019151,2]
[421074901,1776970245106,-300.0,0.00019178,2]
[421074902,1776970245119,-703.02,0.00019178,2]
[421074903,1776970245133,-1191.0,0.00019178,2]
[421074904,1776970245147,-855.62559816,0.000192,2]
[421074905,1776970245159,-263.29449906,0.000192,2]
[421074906,1776970245175,-525.17617896,0.000192,2]
[421074907,1776970245190,-171.63408985,0.000192,2]
[421074908,1776970245203,-1389.92900695,0.000192,2]
[421074909,1776970245216,-224.74577871,0.000192,2]
[421074910,1776970245229,-1535.54368643,0.000192,2]
[421074911,1776970245242,-338.01395355,0.000192,2]
[421074912,1776970245254,-635.31602665,0.000192,2]
[421074913,1776970245266,-168.03137639,0.000192,2]
[421074914,1776970245279,-224.10277073,0.000192,2]
[421074915,1776970245292,-1865.87741964,0.00019208,2]
[421074916,1776970245305,-191.58613818,0.00019208,2]
[421074917,1776970245318,-1000.0,0.00019221,2]
[421074918,1776970245330,-400.29072639,0.00019221,2]
[421074919,1776970245343,-1000.0,0.00019221,2]
[421074920,1776970245356,-288.38227708,0.00019221,2]
[421074921,1776970245368,-1000.0,0.00019221,2]
[421074922,1776970245380,-1000.0,0.00019221,2]
[421074923,1776970245393,-1000.0,0.00019221,2]
[421074924,1776970245406,-1143.6503125,0.00019221,2]
[421074925,1776970245419,-587.58055178,0.00019221,2]
[421074926,1776970245431,-1000.0,0.00019221,2]
[421074927,1776970245445,-1000.0,0.00019221,2]
[421074928,1776970245457,-1000.0,0.00019221,2]
[421074929,1776970245469,-1000.0,0.00019221,2]
[421074930,1776970245483,-1000.0,0.00019221,2]
[421074931,1776970245496,-1000.0,0.00019221,2]
[421074932,1776970245509,-1000.0,0.00019221,2]
[421074933,1776970245521,-1000.0,0.00019221,2]
[421074934,1776970245534,-1000.0,0.00019221,2]
[421074935,1776970245546,-1000.0,0.00019221,2]
[421074936,1776970245560,-2398.4119403,0.00019229,2]
[421074937,1776970245573,-478.75725327,0.00019282,2]
[421074938,1776970245586,-704.33719717,0.00019282,2]
[421074939,1776970245600,-500.0,0.00019319,2]
[421074940,1776970245614,-150.0,0.00019319,2]
[421074941,1776970245626,-500.0,0.00019319,2]
[421074942,1776970245639,-500.0,0.00019319,2]
[421074943,1776970245652,-160.1635907,0.00019319,2]
[421074944,1776970245664,-500.90952224,0.00019345,2]
[421074945,1776970245677,-500.0,0.00019345,2]
[421074946,1776970245689,-1500.0,0.00019368,2]
[421074947,1776970245701,-1389.92900695,0.000194,2]
[421074948,1776970245714,-155.0,0.00019417,2]
[421074949,1776970245726,-441.0,0.00019447,2]
[421074950,1776970245738,-739.0,0.00019447,2]
[421074951,1776970245751,-184.0,0.00019447,2]
[421074953,1776970245763,-1409.0,0.00019447,2]
[421074954,1776970245773,-645.0,0.00019447,2]
[421074955,1776970245783,-1191.0,0.00019452,2]
[421074956,1776970245793,-1338.395238,0.000195,2]
[421074959,1776970246169,-156.587,0.00019555,2]
[421074960,1776970246193,-242.07006319,0.00019555,2]
[421074961,1776970246212,-1099.55963671,0.00019596,2]
[421074962,1776970246228,-500.0,0.000196,2]
[421074963,1776970246239,-500.0,0.000196,2]
[421074964,1776970246248,-1389.92900695,0.000196,2]
[421074965,1776970246258,-424.0,0.000196,2]
[421074966,1776970246268,-194.0,0.000196,2]
[421074967,1776970246278,-322.862729,0.000196,2]
[421074968,1776970246288,-322.862729,0.000196,2]
[421074969,1776970246298,-322.862729,0.000196,2]
[421074970,1776970246308,-322.862729,0.000196,2]
[421074971,1776970246318,-151.0,0.000196,2]
[421074972,1776970246327,-151.0,0.000196,2]
[421074973,1776970246337,-218.2,0.000196,2]
[421074974,1776970246349,-166.399672,0.000196,2]
[421074975,1776970246358,-259.196053,0.000196,2]
[421074976,1776970246368,-259.196053,0.000196,2]
[421074977,1776970246377,-259.196053,0.000196,2]
[421074978,1776970246387,-259.196053,0.000196,2]
[421074979,1776970246397,-500.0,0.000196,2]
[421074980,1776970246407,-251.803886,0.000196,2]
[421074981,1776970246416,-160.0,0.000196,2]
[421074982,1776970246425,-6079.677897,0.000196,2]
[421074983,1776970246434,-11999.355794,0.000196,2]
[421074984,1776970246444,-160.0,0.000196,7]
[421074985,1776970246454,-263.090327,0.000196,7]
[421074986,1776970246463,-366.180655,0.000196,7]
[421074987,1776970246472,-1213002.75152262,0.000196,2]
[421074988,1776970246482,-160.0,0.000196,2]
[421074989,1776970246491,-5514.437765,0.000196,2]
[421074990,1776970246502,-10868.875531,0.000196,2]
[421074991,1776970246512,-312.1069716,0.00019628,30]
[421074992,1776970246522,-555.4847888,0.00019628,30]
[421074993,1776970246531,-155.0472122,0.00019628,30]
[421074994,1776970246541,-170.0,0.00019655,2]
[421074995,1776970246550,-351.31594055,0.00019669,60]
[421074996,1776970246560,-155.0,0.00019683,2]
[421074997,1776970246569,-151.0,0.000197,2]
[421074998,1776970246579,-1191.0,0.00019726,2]
[421074999,1776970246588,-1113.55117179,0.00019768,2]
[421075000,1776970246598,-1500.0,0.00019768,2]
[421075001,1776970246607,-1500.0,0.00019768,2]
[421075002,1776970246616,-1500.0,0.00019768,2]
[421075003,1776970246627,-1500.0,0.00019768,2]
[421075004,1776970246636,-504.09499082,0.00019768,2]
[421075005,1776970246646,-1500.0,0.00019768,2]
[421075006,1776970246655,-1500.0,0.00019768,2]
[421075007,1776970246665,-1500.0,0.00019768,2]
[421075008,1776970246675,-728.90893437,0.00019768,2]
[421075009,1776970246684,-1500.0,0.00019768,2]
[421075010,1776970246693,-1500.0,0.00019768,2]
[421075011,1776970246703,-1500.0,0.00019768,2]
[421075012,1776970246713,-1500.0,0.00019768,2]
[421075013,1776970246724,-2487.15318209,0.00019777,2]
[421075014,1776970246736,-420.0,0.00019781,2]
[421075015,1776970246747,-1533.44729931,0.000198,7]
[421075016,1776970246756,-1389.92900695,0.000198,2]
[421075017,1776970246768,-151.0,0.00019811,5]
[421075018,1776970246781,-496.47127164,0.0001983,2]
[421075019,1776970246791,-1000.0,0.00019866,2]
[421075020,1776970246801,-250.0,0.00019866,2]
[421075021,1776970246811,-1000.0,0.00019866,2]
[421075022,1776970246820,-1000.0,0.00019866,2]
[421075023,1776970246830,-1000.0,0.00019893,2]
[421075024,1776970246840,-2000.0,0.00019916,2]
[421075025,1776970246851,-720.0,0.00019918,2]
[421075026,1776970246860,-155.0,0.00019949,2]
[421075027,1776970246871,-351.31594055,0.00019964,120]
[421075028,1776970246882,-150.61767896,0.00019964,120]
[421075029,1776970246893,-500.0,0.00019973,2]
[421075030,1776970246902,-500.0,0.00019973,2]
[421075031,1776970246911,-158.37816735,0.00019973,2]
[421075032,1776970246922,-150.0,0.00019973,2]
[421075033,1776970246931,-500.0,0.00019973,2]
[421075034,1776970246939,-500.0,0.00019973,2]
[421075035,1776970246949,-500.0,0.00019973,2]
[421075036,1776970246959,-161.89563932,0.00019973,2]
[421075037,1776970246968,-500.0,0.00019973,2]
[421075038,1776970246977,-500.0,0.00019973,2]
[421075039,1776970246987,-515.32477739,0.00019973,2]
[421075040,1776970246996,-500.0,0.00019973,2]
[421075041,1776970247006,-1191.0,0.0002,2]
[421075042,1776970247015,-1698.11736121,0.0002,2]
[421075043,1776970247025,-2123.98054778,0.0002,2]
[421075044,1776970247035,-1533.44729931,0.0002,7]
[421075045,1776970247045,-1533.44729931,0.0002,7]
[421075046,1776970247055,-53237.31198215,0.0002,2]
[421075047,1776970247064,-8846.34329586,0.0002,2]
[421075048,1776970247074,-100413.66090298,0.0002,30]
[421075049,1776970247083,-286.0,0.0002,2]
[421075050,1776970247093,-192.0,0.0002,2]
[421075051,1776970247102,-1389.92900695,0.0002,2]
[421075052,1776970247112,-237.0,0.0002,2]
[421075053,1776970247121,-434.0,0.0002,2]
[421075054,1776970247131,-279.0,0.0002,2]
[421075055,1776970247141,-153.0,0.0002,2]
[421075056,1776970247150,-158.0,0.0002,2]
[421075057,1776970247160,-2328.0,0.0002,2]
[421075058,1776970247170,-300.0,0.0002,4]
[421075059,1776970247179,-322.862729,0.0002,2]
[421075060,1776970247189,-322.862729,0.0002,2]
[421075061,1776970247199,-322.862729,0.0002,2]
[421075062,1776970247211,-322.862729,0.0002,2]
[421075063,1776970247221,-322.862729,0.0002,2]
[421075064,1776970247231,-322.862729,0.0002,2]
[421075065,1776970247242,-322.862729,0.0002,2]
[421075066,1776970247251,-322.862729,0.0002,2]
[421075067,1776970247262,-151.0,0.0002,2]
[421075068,1776970247271,-151.0,0.0002,2]
[421075069,1776970247280,-151.0,0.0002,2]
[421075070,1776970247290,-151.0,0.0002,2]
[421075071,1776970247300,-259.196053,0.0002,2]
[421075072,1776970247310,-259.196053,0.0002,2]
[421075073,1776970247319,-259.196053,0.0002,2]
[421075074,1776970247330,-259.196053,0.0002,2]
[421075075,1776970247340,-259.196053,0.0002,2]
[421075076,1776970247349,-259.196053,0.0002,2]
[421075077,1776970247359,-259.196053,0.0002,2]
[421075078,1776970247368,-259.196053,0.0002,2]
[421075079,1776970247378,-1000.0,0.0002,2]
[421075080,1776970247388,-151.5,0.00020052,2]
[421075081,1776970247397,-1099.50568423,0.00020052,2]
[421075082,1776970247408,-250.0,0.00020054,2]
[421075083,1776970247418,-160.0,0.00020093,3]
[421075084,1776970247427,-151.0,0.00020095,5]
[421075085,1776970247437,-500.0,0.000201,2]
[421075086,1776970247446,-6631.7655961,0.00020115,2]
[421075087,1776970247456,-224.37833996,0.00020169,5]
[421075088,1776970247465,-1389.92900695,0.000202,2]
[421075089,1776970247474,-183.26761404,0.00020208,14]
[421075090,1776970247483,-155.0,0.00020215,2]
[421075091,1776970247492,-351.31594055,0.00020259,120]
[421075092,1776970247501,-1191.0,0.00020274,2]
[421075093,1776970247511,-675.42061426,0.00020316,2]
[421075094,1776970247520,-2000.0,0.00020316,2]
[421075095,1776970247530,-2000.0,0.00020316,2]
[421075096,1776970247539,-2000.0,0.00020316,2]
[421075097,1776970247548,-2000.0,0.00020316,2]
[421075098,1776970247558,-1008.13493713,0.00020316,2]
[421075099,1776970247568,-2000.0,0.00020316,2]
[421075100,1776970247578,-1132.6198135,0.00020316,2]
[421075101,1776970247587,-2000.0,0.00020316,2]
[421075102,1776970247596,-2000.0,0.00020316,2]
[421075103,1776970247606,-2000.0,0.00020316,2]
[421075104,1776970247617,-2579.17784983,0.00020325,2]
[421075105,1776970247627,-151.5,0.00020326,2]
[421075106,1776970247637,-183.26761404,0.00020364,15]
[421075107,1776970247647,-514.84070869,0.00020378,2]
[421075108,1776970247656,-151.0,0.00020379,5]
[421075109,1776970247668,-1500.0,0.00020414,2]
[421075110,1776970247678,-298.0478687,0.00020414,2]
[421075111,1776970247688,-1500.0,0.00020414,2]
[421075112,1776970247698,-1500.0,0.00020414,2]
[421075113,1776970247707,-1500.0,0.00020441,2]
[421075114,1776970247716,-2500.0,0.00020464,2]
[421075115,1776970247726,-155.0,0.00020481,2]
[421075116,1776970247735,-221.79086678,0.0002051,60]
[421075117,1776970247745,-183.26761404,0.00020519,16]
[421075118,1776970247754,-1000.0,0.00020521,2]
[421075119,1776970247763,-1000.0,0.00020521,2]
[421075120,1776970247773,-1000.0,0.00020521,2]
[421075121,1776970247782,-1000.0,0.00020521,2]
[421075122,1776970247791,-250.0,0.00020521,2]
[421075123,1776970247801,-1000.0,0.00020521,2]
[421075124,1776970247811,-503.82690547,0.00020521,2]
[421075125,1776970247820,-1191.0,0.00020548,2]
[421075126,1776970247829,-351.31594055,0.00020554,120]
[421075127,1776970247838,-12435.70479,0.0002058,2]
[421075128,1776970247847,-358.759538,0.0002058,7]
[421075129,1776970247856,-11279.531793,0.0002058,2]
[421075130,1776970247866,-151.5,0.000206,2]
[421075131,1776970247876,-1479.7469195,0.0002062,2]
[421075132,1776970247885,-151.0,0.00020663,5]
[421075134,1776970247894,-183.26761404,0.00020675,18]
[421075135,1776970247903,-210.49738808,0.00020754,2]
[421075137,1776970247913,-1191.0,0.00020822,2]
[421075138,1776970247923,-183.26761404,0.00020831,19]
[421075139,1776970247932,-2500.0,0.00020864,2]
[421075140,1776970247941,-2500.0,0.00020864,2]
[421075142,1776970247950,-2506.36527142,0.00020864,2]
[421075144,1776970247959,-1043.94691411,0.00020864,2]
[421075145,1776970247970,-2500.0,0.00020864,2]
[421075146,1776970247979,-1500.0,0.00020864,2]
[421075147,1776970247989,-2500.0,0.00020864,2]
[421075148,1776970247999,-2500.0,0.00020864,2]
[421075149,1776970248010,-2674.60743027,0.00020873,2]
[421075150,1776970248019,-151.5,0.00020874,2]
[421075151,1776970248028,-174.39778268,0.00020924,2]
[421075152,1776970248038,-533.88981491,0.00020926,2]
[421075153,1776970248047,-151.0,0.00020947,5]
[421075154,1776970248056,-2000.0,0.00020962,2]
[421075155,1776970248065,-2000.0,0.00020962,2]
[421075156,1776970248076,-355.34248703,0.00020962,2]
[421075157,1776970248085,-183.26761404,0.00020987,21]
[421075158,1776970248095,-2000.0,0.00020989,2]
[421075159,1776970248104,-2780.75170254,0.00021,2]
[421075160,1776970248113,-500.0,0.00021,2]
[421075161,1776970248122,-3000.0,0.00021,2]
[421075162,1776970248132,-286.0,0.00021,2]
[421075163,1776970248141,-192.0,0.00021,2]
[421075164,1776970248151,-237.0,0.00021,2]
[421075165,1776970248160,-434.0,0.00021,2]
[421075166,1776970248170,-279.0,0.00021,2]
[421075167,1776970248179,-153.0,0.00021,2]
[421075168,1776970248188,-158.0,0.00021,2]
[421075169,1776970248197,-2328.0,0.00021,2]
[421075170,1776970248207,-322.862729,0.00021,2]
[421075171,1776970248216,-322.862729,0.00021,2]
[421075172,1776970248226,-322.862729,0.00021,2]
[421075173,1776970248235,-322.862729,0.00021,2]
[421075174,1776970248244,-151.0,0.00021,2]
[421075175,1776970248254,-151.0,0.00021,2]
[421075176,1776970248263,-259.196053,0.00021,2]
[421075177,1776970248272,-259.196053,0.00021,2]
[421075178,1776970248282,-259.196053,0.00021,2]
[421075179,1776970248291,-259.196058,0.00021,2]
[421075180,1776970248300,-3000.0,0.0002101,2]
[421075181,1776970248310,-1500.0,0.00021012,2]
[421075182,1776970248320,-3150.0,0.0002102,2]
[421075183,1776970248329,-224.77239047,0.00021068,2]
[421075184,1776970248338,-1500.0,0.00021068,2]
[421075185,1776970248347,-269.49004041,0.00021068,2]
[421075186,1776970248357,-471.6014209,0.00021068,2]
[421075187,1776970248366,-1500.0,0.00021068,2]
[421075188,1776970248375,-500.0,0.00021068,2]
[421075189,1776970248384,-1191.0,0.00021096,2]
[421075190,1776970248394,-246.75,0.00021105,7]
[421075191,1776970248403,-183.26761404,0.00021142,22]
[421075192,1776970248412,-151.5,0.00021148,2]
[421075193,1776970248422,-151.0,0.0002123,7]
[421075194,1776970248431,-183.26761404,0.00021298,23]
[421075195,1776970248440,-83995.68438155,0.000213,7]
[421075196,1776970248450,-1191.0,0.0002137,2]
[421075197,1776970248459,-502.75508587,0.00021412,2]
[421075198,1776970248468,-3000.0,0.00021412,2]
[421075199,1776970248478,-3000.0,0.00021412,2]
[421075200,1776970248487,-3000.0,0.00021412,2]
[421075201,1776970248497,-3000.0,0.00021412,2]
[421075202,1776970248506,-2773.56790519,0.00021421,2]
[421075203,1776970248515,-207.65082095,0.00021422,2]
[421075204,1776970248524,-183.26761404,0.00021454,25]
[421075205,1776970248534,-209.42183974,0.00021474,2]
[421075207,1776970248543,-1444.31440256,0.00021478,19]
[421075208,1776970248553,-150.87929656,0.0002151,60]
[421075209,1776970248562,-2500.0,0.0002151,2]
[421075210,1776970248571,-2500.0,0.0002151,2]
[421075211,1776970248581,-151.0,0.00021514,7]
[421075212,1776970248590,-2500.0,0.00021537,2]
[421075213,1776970248600,-587.0,0.00021581,2]
[421075214,1776970248609,-183.26761404,0.0002161,26]
[421075215,1776970248618,-1957.12932421,0.00021616,2]
[421075216,1776970248628,-558.91578083,0.00021616,2]
[421075217,1776970248638,-1191.0,0.00021644,2]
[421075218,1776970248647,-183.26761404,0.00021765,28]
[421075219,1776970248656,-600.0,0.00021785,2]
[421075220,1776970248666,-151.0,0.00021798,7]
[421075221,1776970248676,-2050.0,0.000218,4]
[421075222,1776970248685,-214.0,0.0002184,2]
[421075223,1776970248695,-864.0,0.00021909,10]
[421075224,1776970248704,-183.26761404,0.00021921,29]
[421075225,1776970248714,-156.0,0.00021942,2]
[421075226,1776970248724,-1395.66509638,0.0002196,2]
[421075227,1776970248733,-3500.0,0.0002196,2]
[421075228,1776970248743,-3500.0,0.0002196,2]
[421075229,1776970248752,-3500.0,0.0002196,2]
[421075230,1776970248761,-2876.18991768,0.00021969,2]
[421075231,1776970248771,-4866.48894562,0.00021978,3]
[421075232,1776970248781,-5845.45,0.00022,2]
[421075233,1776970248790,-390.25,0.00022,2]
[421075234,1776970248800,-286.0,0.00022,2]
[421075235,1776970248809,-192.0,0.00022,2]
[421075236,1776970248819,-237.0,0.00022,2]
[421075237,1776970248828,-434.0,0.00022,2]
[421075238,1776970248837,-279.0,0.00022,2]
[421075239,1776970248847,-153.0,0.00022,2]
[421075240,1776970248856,-166.0,0.00022,2]
[421075241,1776970248865,-2328.0,0.00022,2]
[421075242,1776970248875,-151.0,0.0002202,2]
[421075243,1776970248884,-151.0,0.0002202,2]
[421075244,1776970248894,-151.0,0.0002202,2]
[421075245,1776970248903,-2678.6474587,0.00022058,2]
[421075246,1776970248912,-500.0,0.00022058,2]
[421075247,1776970248922,-200.0,0.00022072,120]
[421075248,1776970248932,-366.43522808,0.00022077,30]
[421075249,1776970248942,-151.0,0.00022078,2]
[421075250,1776970248951,-151.0,0.00022079,2]
[421075251,1776970248960,-151.0,0.00022082,7]
[421075252,1776970248969,-3000.0,0.00022085,2]
[421075253,1776970248979,-1444.5,0.00022121,21]
[421075254,1776970248989,-200.0,0.00022149,120]
[421075255,1776970248998,-155.0,0.00022343,2]
[421075256,1776970249008,-151.0,0.00022366,30]
[421075257,1776970249018,-4558.48774371,0.000224,2]
[421075258,1776970249028,-441.0,0.00022447,2]
[421075259,1776970249037,-549.61,0.00022447,2]
[421075260,1776970249046,-184.0,0.00022447,2]
[421075261,1776970249055,-1409.0,0.00022447,2]
[421075262,1776970249064,-645.0,0.00022447,2]
[421075263,1776970249074,-200.0,0.00022453,120]
[421075265,1776970249083,-1191.0,0.00022466,5]
[421075267,1776970249092,-500.0,0.00022473,2]
[421075268,1776970249102,-500.0,0.00022473,2]
[421075269,1776970249112,-150.0,0.00022473,2]
[421075270,1776970249121,-500.0,0.00022473,2]
[421075271,1776970249131,-159.8009322,0.00022473,2]